bitfinex-derivatives/quotes_SOLF0:USTF0_20260306
["timestamp","ask_amount","ask_price","bid_price","bid_amount"]
[1772824976842,3.57612113,85.53,85.501,10.526]
[1772824978746,4.28733741,85.539,85.501,10.526]
[1772824978948,4.28733741,85.539,85.49,3.57612113]
[1772824978949,4.28733741,85.539,85.494,4.0305016]
[1772824980446,4.28733741,85.539,85.496,4.00561338]
[1772824980944,4.28733741,85.539,85.497,10.527]
[1772824981339,4.28733741,85.539,85.497,14.54326481]
[1772824982350,4.28733741,85.539,85.497,4.01626481]
[1772824982951,0.0744385,85.527,85.497,4.01626481]
[1772824987348,10.523,85.526,85.497,4.01626481]
[1772824990451,0.0744385,85.527,85.48,3.57612113]
[1772824990452,0.0744385,85.527,85.486,3.86584146]
[1772824990658,3.57612113,85.51,85.473,3.86584146]
[1772824991560,0.07384428,85.5,85.473,3.86584146]
[1772824992058,4.34806141,85.518,85.473,3.86584146]
[1772824992854,14.87206141,85.518,85.473,3.86584146]
[1772824993752,10.525,85.509,85.473,3.86584146]
[1772824994558,4.34806141,85.518,85.473,3.86584146]
[1772824995059,3.57612113,85.52,85.473,3.86584146]
[1772824995060,4.34806141,85.509,85.473,3.86584146]
[1772824995253,3.57612113,85.5,85.454,3.727309]
[1772824995450,4.34806141,85.499,85.454,3.727309]
[1772824996559,4.34806141,85.499,85.458,3.71799662]
[1772824997062,4.34806141,85.509,85.469,3.68810202]
[1772824997361,7.92418254,85.52,85.471,3.68810202]
[1772824998263,4.34806141,85.52,85.471,3.68810202]
[1772824998466,7.92418254,85.52,85.471,3.68810202]
[1772824998763,4.34806141,85.519,85.473,10.53]
[1772824998958,4.34806141,85.519,85.474,3.68348146]
[1772824999963,4.34806141,85.532,85.482,3.6744899]
[1772825000162,4.34806141,85.529,85.482,3.6744899]
[1772825000559,4.34806141,85.529,85.498,0.07398976]
[1772825002565,10.523,85.528,85.498,0.07398976]
[1772825003467,2.03545077,85.543,85.47,3.78125153]
[1772825003468,4.34806141,85.515,85.47,3.78125153]
[1772825005164,3.57612113,85.51,85.47,3.78125153]
[1772825005365,2.03545077,85.543,85.47,3.78125153]
[1772825005366,3.57612113,85.5,85.47,3.78125153]
[1772825006062,4.34806141,85.509,85.47,3.78125153]
[1772825006869,14.87306141,85.509,85.47,3.78125153]
[1772825007168,3.57612113,85.51,85.471,3.74475692]
[1772825007969,10.526,85.502,85.471,3.74475692]
[1772825009069,14.87306141,85.509,85.471,3.74475692]
[1772825011671,4.34806141,85.509,85.471,3.74475692]
[1772825011867,4.26739421,85.525,85.471,3.74475692]
[1772825012065,3.58108239,85.52,85.471,3.74475692]
[1772825012266,4.26739421,85.525,85.471,3.74475692]
[1772825012667,10.523,85.524,85.481,3.71080916]
[1772825012867,4.26739421,85.537,85.491,3.711234]
[1772825013566,10.522,85.532,85.491,3.711234]
[1772825013767,4.26739421,85.529,85.491,3.711234]
[1772825014274,4.26739421,85.529,85.48,3.58108239]
[1772825014673,4.26739421,85.529,85.48,7.27593838]
[1772825014973,0.07469563,85.513,85.481,3.6037209]
[1772825015877,0.07469563,85.513,85.482,3.59634664]
[1772825016972,0.07469563,85.513,85.484,3.72409387]
[1772825018266,0.07469563,85.513,85.486,3.71675727]
[1772825019977,10.522,85.539,85.488,3.70019878]
[1772825020167,10.522,85.539,85.461,21.063]
[1772825020168,2.92181291,85.538,85.491,3.62550315]
[1772825020369,2.92181291,85.537,85.501,3.61735037]
[1772825020580,4.26739421,85.543,85.501,3.61735037]
[1772825020777,2.92158304,85.542,85.501,3.61735037]
[1772825020978,2.92158304,85.541,85.501,3.61735037]
[1772825021281,10.52,85.555,85.501,3.61735037]
[1772825021481,2.92131292,85.554,85.501,3.61735037]
[1772825021683,2.92131292,85.553,85.501,3.61735037]
[1772825021988,2.92131292,85.552,85.511,3.60986282]
[1772825022177,2.92131292,85.551,85.511,3.60986282]
[1772825022374,2.92131292,85.55,85.511,3.60986282]
[1772825022578,2.92131292,85.549,85.511,3.60986282]
[1772825022885,2.92131292,85.548,85.511,3.60986282]
[1772825023083,2.92131292,85.547,85.511,3.60986282]
[1772825023284,4.26739421,85.556,85.511,3.60986282]
[1772825023580,4.26739421,85.554,85.511,3.60986282]
[1772825023878,2.0345761,85.583,85.511,3.60986282]
[1772825023879,4.26739421,85.549,85.511,3.60986282]
[1772825024083,3.58108239,85.54,85.491,3.61253722]
[1772825024988,10.521,85.541,85.494,3.61060084]
[1772825025287,4.26739421,85.539,85.494,3.61060084]
[1772825025786,14.78939421,85.539,85.494,3.61060084]
[1772825026487,4.26739421,85.535,85.508,0.07419645]
[1772825031391,4.26739421,85.577,85.508,3.64489709]
[1772825031585,4.26739421,85.57,85.53,3.58108239]
[1772825031793,4.26739421,85.583,85.531,3.57070064]
[1772825032090,210.92823842,85.622,85.54,3.57161959]
[1772825032091,4.26739421,85.579,85.54,3.57161959]
[1772825032290,4.26739421,85.579,85.53,3.58108239]
[1772825032592,4.26739421,85.579,85.456,192.53984603]
[1772825032593,4.26739421,85.639,85.571,3.56452219]
[1772825032792,4.26739421,85.639,85.509,163.732]
[1772825032793,4.26739421,85.637,85.58,3.58108239]
[1772825032992,11.80419874,85.673,85.58,3.58108239]
[1772825032993,4.26739421,85.629,85.58,3.58108239]
[1772825033191,4.26739421,85.644,85.591,3.56599956]
[1772825033392,4.26739421,85.644,85.61,3.58108239]
[1772825033595,342.34,85.715,85.555,456.97068173]
[1772825033596,10.507,85.662,85.62,3.58108239]
[1772825033794,4.26739421,85.659,85.611,3.55898368]
[1772825033995,4.26739421,85.659,85.6,3.58108239]
[1772825034195,4.26739421,85.649,85.597,3.55988118]
[1772825034493,3.58108239,85.66,85.61,3.58108239]
[1772825034790,4.26739421,85.659,85.611,3.55294588]
[1772825034989,4.26739421,85.674,85.621,3.60276463]
[1772825035184,4.26739421,85.669,85.61,3.58108239]
[1772825035392,4.26739421,85.657,85.626,0.07402565]
[1772825035790,4.20933488,85.649,85.604,3.60276463]
[1772825036191,4.20933488,85.643,85.59,3.58108239]
[1772825036394,4.20933488,85.643,85.591,3.57887461]
[1772825036695,4.20933488,85.67,85.61,3.58108239]
[1772825036887,4.20933488,85.649,85.601,3.57887461]
[1772825037190,4.20933488,85.639,85.59,3.58108239]
[1772825037490,3.58108239,85.65,85.601,3.56822145]
[1772825037697,4.20933488,85.653,85.611,3.56822145]
[1772825038796,4.20933488,85.653,85.555,456.97068173]
[1772825038797,4.20933488,85.649,85.601,3.57068521]
[1772825039398,10.508,85.646,85.601,3.57068521]
[1772825040193,14.71733488,85.646,85.601,3.57068521]
[1772825040393,10.509,85.642,85.601,3.57068521]
[1772825040598,3.58108239,85.64,85.601,3.57068521]
[1772825040794,2.0323126,85.675,85.555,456.97068173]
[1772825040795,4.20933488,85.619,85.573,3.55367702]
[1772825040997,3.58108239,85.61,85.56,7.13475941]
[1772825041298,14.09408239,85.61,85.56,3.55367702]
[1772825041489,3.58108239,85.6,85.56,3.55367702]
[1772825041906,21.013,85.666,85.555,456.97068173]
[1772825041907,3.58108239,85.62,85.571,3.54374218]
[1772825043099,14.09308239,85.62,85.571,3.54374218]
[1772825043702,3.58108239,85.6,85.556,3.43399664]
[1772825043903,3.58108239,85.59,85.556,3.43399664]
[1772825044399,10.515,85.593,85.556,3.43399664]
[1772825046202,0.07387485,85.583,85.556,3.43399664]
[1772825046501,0.07387485,85.583,85.555,456.97068173]
[1772825046696,3.58108239,85.58,85.53,3.58108239]
[1772825046897,3.58108239,85.58,85.531,3.44555084]
[1772825047700,10.517,85.579,85.531,3.44555084]
[1772825048104,3.58108239,85.58,85.531,3.44555084]
[1772825048300,4.1864327,85.587,85.53,3.58108239]
[1772825048301,10.516,85.586,85.54,7.04451515]
[1772825048505,14.7024327,85.586,85.54,7.04451515]
[1772825048704,10.80310766,85.668,85.53,10.523]
[1772825048705,3.58108239,85.58,85.53,3.58108239]
[1772825049005,3.58108239,85.57,85.524,3.45767]
[1772825049903,10.518,85.566,85.524,3.45767]
[1772825050303,4.1864327,85.569,85.51,3.58108239]
[1772825050500,10.519,85.558,85.51,7.03934076]
[1772825050706,3.58108239,85.55,85.51,3.45825837]
[1772825051398,9.53823765,85.614,85.445,21.067]
[1772825051399,14.10208239,85.54,85.491,3.49220081]
[1772825052505,10.521,85.54,85.491,3.49220081]
[1772825053008,4.1864327,85.546,85.491,3.49220081]
[1772825053201,4.1864327,85.569,85.491,3.49220081]
[1772825054110,4.1864327,85.569,85.452,11.59012111]
[1772825054111,4.1864327,85.569,85.498,3.52097755]
[1772825055806,10.519,85.559,85.501,3.4604691]
[1772825056408,4.1864327,85.569,85.503,3.45521506]
[1772825057910,10.52,85.553,85.503,3.45521506]
[1772825060013,14.7054327,85.561,85.506,3.43751355]
[1772825061503,4.1864327,85.554,85.506,3.43751355]
[1772825062111,0.07374343,85.539,85.506,3.43751355]
[1772825066818,10.522,85.538,85.491,3.38694576]
[1772825069116,10.522,85.538,85.495,3.37567741]
[1772825069815,4.1864327,85.542,85.497,3.37173355]
[1772825070014,10.521,85.546,85.497,3.37173355]
[1772825070317,4.1864327,85.555,85.497,3.37173355]
[1772825070513,14.7064327,85.555,85.509,3.36726411]
[1772825070817,4.1864327,85.555,85.509,3.36726411]
[1772825071517,4.1864327,85.555,85.512,3.36216691]
[1772825072217,10.52,85.549,85.512,3.36216691]
[1772825073415,7.35679014,85.54,85.494,3.45904252]
[1772825073616,3.77952273,85.539,85.494,3.45904252]
[1772825074114,3.77952273,85.539,85.495,10.527]
[1772825074317,3.77952273,85.552,85.511,3.45105187]
[1772825074516,7.35679014,85.56,85.511,3.45105187]
[1772825074715,3.77952273,85.559,85.511,3.45105187]
[1772825075123,10.519,85.558,85.511,3.45105187]
[1772825075426,3.77952273,85.557,85.511,3.45105187]
[1772825076321,10.52,85.555,85.514,10.525]
[1772825077725,10.519,85.564,85.517,3.46500196]
[1772825077918,3.77952273,85.563,85.517,3.46500196]
[1772825078523,3.57726741,85.56,85.517,3.46500196]
[1772825078929,3.77952273,85.559,85.517,3.46500196]
[1772825079722,3.77952273,85.559,85.51,3.57726741]
[1772825079924,3.77952273,85.549,85.51,10.525]
[1772825080323,3.77952273,85.549,85.504,3.43634176]
[1772825085229,3.77952273,85.549,85.506,3.77779457]
[1772825085429,3.77952273,85.549,85.51,3.57726741]
[1772825086031,3.77952273,85.549,85.506,3.77779457]
[1772825086230,3.77952273,85.549,85.507,10.525]
[1772825088431,6.70072659,85.548,85.513,10.525]
[1772825088631,3.77952273,85.548,85.513,10.525]
[1772825089231,2.92123883,85.547,85.513,10.525]
[1772825089431,3.77952273,85.548,85.513,10.525]
[1772825089626,2.92120386,85.547,85.513,10.525]
[1772825089831,3.77952273,85.548,85.513,10.525]
[1772825090025,2.9212037,85.547,85.513,10.525]
[1772825090229,0.07374815,85.539,85.513,10.525]
[1772825090629,0.07374815,85.539,85.506,3.77779457]
[1772825091835,0.07374815,85.539,85.508,10.525]
[1772825093834,0.07374815,85.539,85.506,3.77779457]
[1772825093835,3.57726741,85.53,85.503,3.57983808]
[1772825094438,3.77952273,85.539,85.509,10.525]
[1772825094738,6.70099582,85.538,85.509,10.525]
[1772825094938,2.92147309,85.537,85.509,10.525]
[1772825095231,2.92147247,85.536,85.503,3.57983808]
[1772825095439,3.57726741,85.53,85.503,3.57983808]
[1772825096436,3.57726741,85.53,85.504,10.526]
[1772825096637,3.77952273,85.538,85.504,10.526]
[1772825096836,2.92147293,85.537,85.504,10.526]
[1772825097038,3.77952273,85.538,85.504,10.526]
[1772825099545,3.99815758,85.529,85.489,3.52392328]
[1772825100136,3.99815758,85.529,85.491,10.527]
[1772825100847,3.57726741,85.52,85.489,3.52392328]
[1772825101247,3.57726741,85.52,85.478,3.53829867]
[1772825101448,7.57542499,85.52,85.478,3.53829867]
[1772825101747,7.57542499,85.52,85.49,10.528]
[1772825105154,3.57726741,85.53,85.497,10.527]
[1772825105350,3.7696575,85.529,85.497,10.527]
[1772825108357,3.7696575,85.529,85.503,10.526]
[1772825109157,3.7696575,85.529,85.497,10.527]
[1772825109658,3.7696575,85.529,85.488,14.01427506]
[1772825109957,3.7696575,85.519,85.471,3.45696502]
[1772825110857,3.7696575,85.519,85.486,10.528]
[1772825114051,3.7696575,85.519,85.479,10.529]
[1772825114655,3.7696575,85.509,85.479,10.529]
[1772825115760,3.7696575,85.499,85.458,3.44156581]
[1772825115960,3.7696575,85.499,85.461,3.44182554]
[1772825116658,3.7696575,85.499,85.463,10.531]
[1772825117258,3.7696575,85.499,85.461,3.44182554]
[1772825117760,3.7696575,85.489,85.441,3.45932797]
[1772825118058,21.043,85.54,85.441,3.45932797]
[1772825118059,3.7696575,85.479,85.441,3.45932797]
[1772825120964,3.7696575,85.469,85.43,10.535]
[1772825122364,3.7696575,85.469,85.429,3.33029566]
[1772825123163,3.7696575,85.469,85.43,3.31534607]
[1772825123962,3.7696575,85.469,85.431,3.31327448]
[1772825124162,3.7696575,85.469,85.43,3.57726741]
[1772825124163,3.7696575,85.469,85.433,3.31327448]
[1772825124965,3.7696575,85.493,85.451,3.27222241]
[1772825125760,3.7696575,85.493,85.46,3.57726741]
[1772825125962,3.7696575,85.518,85.471,3.27020904]
[1772825126166,3.7696575,85.533,85.481,3.27020904]
[1772825126458,3.7696575,85.519,85.47,3.57726741]
[1772825126663,3.7696575,85.519,85.464,3.2679486]
[1772825126860,3.7696575,85.516,85.464,3.2679486]
[1772825128764,3.7696575,85.516,85.465,3.28591983]
[1772825129761,3.7696575,85.516,85.468,10.53]
[1772825130167,3.7696575,85.516,85.471,3.2839916]
[1772825130566,3.7696575,85.516,85.474,10.529]
[1772825130768,3.7696575,85.509,85.471,3.2839916]
[1772825130974,3.7696575,85.509,85.46,6.86655254]
[1772825131265,3.7696575,85.525,85.475,3.28928513]
[1772825131465,3.7696575,85.525,85.439,21.068]
[1772825131466,3.7696575,85.519,85.47,3.57726741]
[1772825131671,3.7696575,85.509,85.461,3.28715156]
[1772825131868,3.7696575,85.509,85.464,10.531]
[1772825132872,3.7696575,85.509,85.466,10.53]
[1772825133970,3.7696575,85.509,85.465,3.24470726]
[1772825134970,3.81359548,85.508,85.465,3.24470726]
[1772825137576,3.81359548,85.499,85.431,3.15224952]
[1772825137781,14.40164708,85.557,85.265,492.601]
[1772825137782,3.58137058,85.46,85.42,3.15224952]
[1772825138074,3.81359548,85.489,85.431,3.15250743]
[1772825138275,3.58137058,85.48,85.431,3.15250743]
[1772825138574,3.81359548,85.479,85.431,3.15250743]
[1772825139475,21.53405097,85.535,85.379,21.083]
[1772825139476,3.81359548,85.489,85.441,3.07064618]
[1772825140274,3.58137058,85.48,85.441,3.07064618]
[1772825140475,3.81359548,85.479,85.427,3.06901578]
[1772825141876,14.34259548,85.478,85.427,3.06901578]
[1772825142377,3.81359548,85.478,85.431,2.99666932]
[1772825143075,3.58137058,85.48,85.431,2.99666932]
[1772825143872,3.58137058,85.48,85.432,3.00328325]
[1772825144074,3.81359548,85.488,85.441,3.00328325]
[1772825144680,7.39496606,85.5,85.451,3.0014682]
[1772825144876,3.81359548,85.5,85.451,3.0014682]
[1772825145077,3.81359548,85.499,85.451,3.0014682]
[1772825145874,3.81359548,85.499,85.452,2.99687298]
[1772825146876,3.81359548,85.499,85.453,10.532]
[1772825147076,3.81359548,85.499,85.453,13.51196594]
[1772825147482,3.81359548,85.499,85.454,2.97821272]
[1772825148783,3.81359548,85.499,85.459,10.531]
[1772825149579,3.81359548,85.499,85.454,2.97821272]
[1772825149885,3.81359548,85.479,85.431,2.96253712]
[1772825153585,7.39496606,85.47,85.431,2.96253712]
[1772825153787,3.81359548,85.47,85.431,2.96253712]
[1772825154379,3.81359548,85.499,85.451,2.97765909]
[1772825154583,3.81359548,85.497,85.451,2.97765909]
[1772825154787,3.81359548,85.497,85.44,3.58137058]
[1772825154983,3.81359548,85.469,85.406,2.97748372]
[1772825155187,3.81359548,85.469,85.421,2.97748372]
[1772825155780,3.96748126,85.457,85.42,3.58137058]
[1772825156082,3.96748126,85.457,85.401,2.97454238]
[1772825156882,10.533,85.448,85.401,2.97454238]
[1772825157288,3.96748126,85.447,85.401,2.97454238]
[1772825159278,3.96748126,85.447,85.39,3.58137058]
[1772825161085,3.96748126,85.447,85.363,187.08]
[1772825161086,3.96748126,85.447,85.401,3.17588605]
[1772825164889,3.91753853,85.459,85.411,3.18181758]
[1772825166986,3.91753853,85.459,85.373,3.20949162]
[1772825167182,3.91753853,85.459,85.4,6.7908622]
[1772825167591,3.91753853,85.459,85.407,10.538]
[1772825168984,3.91753853,85.459,85.411,3.21434013]
[1772825169589,3.91753853,85.459,85.42,3.58137058]
[1772825170489,3.58137058,85.48,85.431,3.211854]
[1772825170689,3.91753853,85.479,85.431,3.211854]
[1772825171087,3.91753853,85.479,85.449,10.533]
[1772825171794,3.91753853,85.479,85.442,10.533]
[1772825172186,3.91753853,85.479,85.424,3.29346602]
[1772825172187,3.58137058,85.47,85.424,3.29346602]
[1772825172390,3.91753853,85.469,85.435,10.534]
[1772825175090,3.91753853,85.469,85.428,10.535]
[1772825175790,3.91753853,85.469,85.421,10.536]
[1772825175989,3.91753853,85.459,85.421,10.536]
[1772825176687,3.91753853,85.449,85.4,3.58137058]
[1772825176895,3.91753853,85.449,85.4,7.0104691]
[1772825177392,3.91753853,85.449,85.412,10.537]
[1772825179295,3.91753853,85.449,85.4,3.42909852]
[1772825180396,3.91753853,85.449,85.409,10.537]
[1772825180894,3.91753853,85.449,85.4,3.42909852]
[1772825181491,3.58137058,85.44,85.4,3.42909852]
[1772825181694,7.49890911,85.44,85.4,3.42909852]
[1772825182494,3.91753853,85.44,85.407,10.538]
[1772825183896,10.531,85.462,85.4,3.42909852]
[1772825183897,3.91753853,85.451,85.41,3.40621278]
[1772825185401,3.91753853,85.451,85.411,10.537]
[1772825189205,3.58137058,85.45,85.411,10.537]
[1772825189405,3.91753853,85.449,85.41,3.40621278]
[1772825190910,3.91753853,85.449,85.4,3.58137058]
[1772825191211,307.29128336,85.474,85.401,3.416269]
[1772825191212,3.58137058,85.46,85.401,3.416269]
[1772825191510,3.91753853,85.458,85.418,10.536]
[1772825192411,3.91753853,85.458,85.411,10.537]
[1772825193013,3.67696774,85.439,85.385,3.41221105]
[1772825193311,3.67696774,85.439,85.401,3.41221105]
[1772825194510,3.67696774,85.439,85.402,10.538]
[1772825197216,3.67696774,85.439,85.404,10.538]
[1772825197813,3.67696774,85.463,85.409,3.27596963]
[1772825198112,3.67696774,85.459,85.409,3.27596963]
[1772825198413,3.67696774,85.457,85.409,3.27596963]
[1772825198609,6.60171918,85.456,85.41,6.86149051]
[1772825198813,3.67696774,85.454,85.41,3.27513112]
[1772825199108,2.92451555,85.453,85.41,3.27513112]
[1772825199311,2.92455171,85.452,85.41,3.27513112]
[1772825199614,3.67696774,85.454,85.41,3.27513112]
[1772825199814,2.92455171,85.453,85.415,10.537]
[1772825200113,3.67696774,85.451,85.41,3.27513112]
[1772825200608,3.67696774,85.451,85.383,21.082]
[1772825200609,3.67696774,85.469,85.421,3.2646499]
[1772825200807,2.92432213,85.468,85.431,3.2646499]
[1772825201012,307.29128336,85.474,85.431,3.2646499]
[1772825201205,307.29128336,85.474,85.43,3.58635939]
[1772825201206,2.92400951,85.473,85.433,3.27623243]
[1772825201407,3.67696774,85.482,85.441,3.27623243]
[1772825202311,3.58635939,85.49,85.444,3.27542107]
[1772825202517,2.92352578,85.489,85.444,3.27542107]
[1772825202816,2.92352578,85.488,85.444,3.27542107]
[1772825203017,2.92352578,85.487,85.444,3.27542107]
[1772825203219,14.20396774,85.494,85.444,3.27542107]
[1772825203417,2.92348474,85.493,85.451,3.24819518]
[1772825203610,2.92348474,85.492,85.451,3.24819518]
[1772825203810,10.80310766,85.518,85.451,3.24819518]
[1772825203811,3.67696774,85.507,85.451,3.24819518]
[1772825204013,2.9230748,85.506,85.461,3.24740526]
[1772825204214,2.9230748,85.505,85.461,3.24740526]
[1772825204413,2.9230748,85.504,85.461,3.24740526]
[1772825204617,3.67696774,85.507,85.461,3.24740526]
[1772825206614,3.58635939,85.49,85.451,3.25235498]
[1772825206820,3.67696774,85.499,85.451,3.25235498]
[1772825207417,3.67696774,85.479,85.432,3.2404851]
[1772825207915,3.67696774,85.495,85.441,3.23963841]
[1772825208115,3.67696774,85.495,85.453,10.532]
[1772825209220,3.67696774,85.495,85.451,3.23973134]
[1772825210224,3.67696774,85.495,85.452,10.532]
[1772825210424,3.67696774,85.495,85.451,3.23973134]
[1772825210621,3.67696774,85.489,85.451,3.23973134]
[1772825210827,3.67696774,85.489,85.444,10.533]
[1772825211128,3.67696774,85.479,85.436,3.22038151]
[1772825212635,3.67696774,85.479,85.367,28.87682465]
[1772825212636,3.58635939,85.45,85.412,3.21886433]
[1772825216838,3.8457037,85.449,85.397,3.16717548]
[1772825217836,3.58635939,85.44,85.399,3.15932404]
[1772825218839,3.58635939,85.46,85.401,3.15867552]
[1772825219035,3.58635939,85.45,85.401,3.15867552]
[1772825219633,7.43206309,85.45,85.401,3.15867552]
[1772825220440,7.43206309,85.45,85.416,10.537]
[1772825221530,7.43206309,85.45,85.409,10.538]
[1772825221935,7.43206309,85.45,85.401,3.15867552]
[1772825222535,7.43206309,85.45,85.415,10.537]
[1772825223437,7.43206309,85.45,85.413,3.13810805]
[1772825223643,307.51679647,85.484,85.413,3.13810805]
[1772825223644,3.92389695,85.464,85.413,3.13810805]
[1772825223940,3.92389695,85.459,85.413,3.13810805]
[1772825224544,3.92389695,85.459,85.427,10.535]
[1772825225337,307.51679647,85.484,85.345,11.7]
[1772825225338,3.92389695,85.497,85.447,3.12472389]
[1772825225539,179.0,85.575,85.41,3.58635939]
[1772825225540,3.92389695,85.469,85.41,3.58635939]
[1772825225743,3.92389695,85.469,85.411,3.12405154]
[1772825227834,3.58635939,85.48,85.431,3.63102637]
[1772825228042,3.92389695,85.483,85.431,3.63102637]
[1772825229741,3.92389695,85.483,85.443,10.533]
[1772825230244,3.92389695,85.479,85.431,3.63102637]
[1772825230546,3.92389695,85.469,85.431,3.63102637]
[1772825231047,3.92389695,85.469,85.348,28.8547306]
[1772825231048,3.58635939,85.45,85.408,3.68951582]
[1772825232051,3.92389695,85.459,85.425,10.536]
[1772825234748,3.92389695,85.459,85.418,10.536]
[1772825235550,3.92389695,85.459,85.425,10.536]
[1772825235939,3.92389695,85.459,85.411,3.74794208]
[1772825236345,3.58635939,85.44,85.393,3.74796877]
[1772825236539,3.92389695,85.449,85.393,3.74796877]
[1772825237151,3.92389695,85.449,85.401,3.73995477]
[1772825238357,3.92389695,85.449,85.323,164.089]
[1772825238358,3.92389695,85.429,85.381,3.73939608]
[1772825238555,3.58635939,85.44,85.391,3.73881748]
[1772825238945,3.58635939,85.44,85.394,3.75529988]
[1772825239145,3.92389695,85.443,85.401,3.75529988]
[1772825240452,7.51025634,85.47,85.411,3.75475277]
[1772825240646,3.92389695,85.469,85.411,3.75475277]
[1772825240852,3.58635939,85.46,85.413,10.537]
[1772825241454,3.58635939,85.46,85.413,14.35852857]
[1772825242855,3.58635939,85.46,85.42,10.536]
[1772825243053,3.92389695,85.469,85.421,3.82880401]
[1772825243652,3.92389695,85.469,85.43,3.58635939]
[1772825243952,3.92389695,85.469,85.43,7.4151634]
[1772825244654,3.92389695,85.469,85.431,3.82880401]
[1772825244852,3.58635939,85.48,85.438,10.534]
[1772825245656,316.56908367,85.478,85.438,10.534]
[1772825247151,316.56908367,85.478,85.445,10.533]
[1772825247353,3.92389695,85.491,85.441,3.82880401]
[1772825247552,3.92389695,85.491,85.451,3.82880401]
[1772825247751,3.92389695,85.491,85.46,3.58635939]
[1772825247956,3.92389695,85.508,85.461,10.531]
[1772825248158,3.92389695,85.506,85.461,10.531]
[1772825248364,3.92389695,85.504,85.461,10.531]
[1772825248661,3.92389695,85.504,85.47,3.58635939]
[1772825249254,3.92389695,85.504,85.461,3.82880401]
[1772825250762,3.92389695,85.504,85.45,7.4151634]
[1772825251266,3.92389695,85.504,85.451,3.82880401]
[1772825251763,3.92389695,85.504,85.462,10.531]
[1772825252559,3.92389695,85.504,85.451,3.82880401]
[1772825252765,2.03570676,85.534,85.453,10.532]
[1772825252766,3.72399685,85.499,85.453,10.532]
[1772825253069,3.72399685,85.499,85.451,3.82880401]
[1772825253864,3.72399685,85.499,85.459,10.531]
[1772825254265,3.72399685,85.512,85.461,3.61531555]
[1772825254567,3.58635939,85.52,85.471,10.53]
[1772825254568,3.72399685,85.51,85.471,10.53]
[1772825254768,3.72399685,85.508,85.471,10.53]
[1772825254969,3.72399685,85.506,85.471,10.53]
[1772825255173,3.72399685,85.506,85.477,10.529]
[1772825256270,3.72399685,85.506,85.47,10.53]
[1772825256767,3.72399685,85.499,85.463,10.531]
[1772825256959,3.72399685,85.499,85.45,3.58114049]
[1772825256960,3.72399685,85.499,85.451,3.61531555]
[1772825257161,3.72399685,85.509,85.461,3.61531555]
[1772825258870,3.72399685,85.509,85.469,10.53]
[1772825259762,3.72399685,85.509,85.471,10.53]
[1772825259971,3.72399685,85.509,85.47,3.58114049]
[1772825260374,3.72399685,85.529,85.479,10.529]
[1772825260567,3.58114049,85.52,85.479,10.529]
[1772825260873,3.72399685,85.518,85.479,10.529]
[1772825261070,3.72399685,85.516,85.479,10.529]
[1772825261274,3.72399685,85.509,85.471,10.53]
[1772825263073,3.72399685,85.523,85.472,3.61531555]
[1772825263279,3.72399685,85.523,85.481,3.61531555]
[1772825263971,3.72399685,85.519,85.482,10.528]
[1772825264275,2.03543886,85.544,85.448,3.61531555]
[1772825264276,3.72399685,85.499,85.448,3.61531555]
[1772825264477,3.58114049,85.49,85.448,3.61531555]
[1772825266877,3.72399685,85.469,85.43,3.61531555]
[1772825268571,3.58114049,85.47,85.43,3.61531555]
[1772825268774,3.72399685,85.479,85.43,3.61531555]
[1772825268970,3.72399685,85.477,85.43,3.61531555]
[1772825269479,3.72399685,85.477,85.431,11.34]
[1772825269878,3.72399685,85.477,85.432,3.61531555]
[1772825270070,10.528,85.487,85.432,3.61531555]
[1772825270270,14.25199685,85.487,85.432,3.61531555]
[1772825270576,14.52058124,85.534,85.432,3.61531555]
[1772825270577,3.58114049,85.48,85.432,3.61531555]
[1772825271177,3.72399685,85.486,85.432,3.61531555]
[1772825271573,10.529,85.479,85.434,3.61531555]
[1772825272485,3.58114049,85.48,85.434,3.61531555]
[1772825273081,3.72399685,85.479,85.434,3.61531555]
[1772825273878,14.52058124,85.534,85.431,11.34]
[1772825273879,3.72399685,85.469,85.431,11.34]
[1772825274079,3.58114049,85.45,85.431,11.34]
[1772825274280,3.58114049,85.45,85.431,11.19097171]
[1772825274482,3.58114049,85.44,85.391,3.61531555]
[1772825275282,3.58114049,85.43,85.391,3.61531555]
[1772825275982,1.13927787,85.437,85.391,3.61531555]
[1772825276185,3.58114049,85.42,85.391,3.61531555]
[1772825276482,3.58114049,85.44,85.391,3.61531555]
[1772825276878,3.58114049,85.44,85.393,3.63301131]
[1772825277480,4.72012632,85.45,85.401,3.63301131]
[1772825277881,3.58114049,85.44,85.401,3.63301131]
[1772825280089,3.58114049,85.44,85.402,10.538]
[1772825280388,3.58114049,85.44,85.39,3.58114049]
[1772825280389,1.17568016,85.439,85.391,3.63301131]